fUST/lending_fUST_20250520
["ID","MTS","AMOUNT","RATE_DAILY","PERIOD"]
[361707698,1747710641473,-151.0,0.00016712,2]
[361707699,1747710641482,-151.0,0.00016712,2]
[361707700,1747710641491,-151.0,0.00016712,2]
[361707701,1747710641502,-151.0,0.00016712,2]
[361707702,1747710641511,-430.0,0.00016712,2]
[361707703,1747710641522,-430.0,0.00016712,2]
[361707704,1747710641532,-151.0,0.00016712,2]
[361707705,1747710641543,-151.0,0.00016712,2]
[361707706,1747710641553,-151.0,0.00016712,2]
[361707707,1747710641564,-165.898181,0.00016712,2]
[361707708,1747710641574,-516.52436106,0.00016712,2]
[361707709,1747710641583,-430.0,0.00016712,2]
[361707710,1747710641593,-430.0,0.00016712,2]
[361707711,1747710641603,-2360.68,0.00016712,2]
[361707712,1747710641614,-220.495393,0.00016712,2]
[361707713,1747710641623,-220.495393,0.00016712,2]
[361707714,1747710641633,-220.495393,0.00016712,2]
[361707715,1747710641643,-220.495393,0.00016712,2]
[361707716,1747710641658,-220.495393,0.00016712,2]
[361707717,1747710641667,-430.0,0.00016712,2]
[361707718,1747710641677,-430.0,0.00016712,2]
[361707719,1747710641687,-220.495393,0.00016712,2]
[361707720,1747710641697,-220.495393,0.00016712,2]
[361707721,1747710641707,-220.495393,0.00016712,2]
[361707722,1747710641716,-220.495393,0.00016712,2]
[361707723,1747710641726,-430.0,0.00016712,2]
[361707724,1747710641736,-220.495393,0.00016712,2]
[361707725,1747710641746,-430.0,0.00016712,2]
[361707726,1747710641755,-903.879696,0.00016712,2]
[361707727,1747710641765,-903.879696,0.00016712,2]
[361707728,1747710641776,-903.879696,0.00016712,2]
[361707729,1747710641786,-903.879696,0.00016712,2]
[361707730,1747710641795,-903.879696,0.00016712,2]
[361707731,1747710641806,-430.0,0.00016712,2]
[361707732,1747710641815,-430.0,0.00016712,2]
[361707733,1747710641825,-903.879696,0.00016712,2]
[361707734,1747710641835,-903.879696,0.00016712,2]
[361707735,1747710641844,-430.0,0.00016712,2]
[361707736,1747710641855,-903.879696,0.00016712,2]
[361707737,1747710641866,-903.879696,0.00016712,2]
[361707738,1747710641876,-903.879696,0.00016712,2]
[361707739,1747710641886,-1292.75,0.00016712,2]
[361707740,1747710641896,-453.73923172,0.00016712,2]
[361707741,1747710641908,-188.040884,0.00016712,2]
[361707742,1747710641918,-600.46,0.00016712,2]
[361707743,1747710641927,-188.040884,0.00016712,2]
[361707744,1747710641937,-188.040884,0.00016712,2]
[361707745,1747710641947,-188.040884,0.00016712,2]
[361707746,1747710641957,-188.040884,0.00016712,2]
[361707747,1747710641968,-558.48076791,0.00016712,2]
[361707748,1747710641978,-188.040884,0.00016712,2]
[361707749,1747710641987,-188.040884,0.00016712,2]
[361707750,1747710641997,-188.040884,0.00016712,2]
[361707751,1747710642008,-188.040884,0.00016712,2]
[361707752,1747710642018,-188.040884,0.00016712,2]
[361707753,1747710642028,-430.0,0.00016712,2]
[361707754,1747710642038,-532.13,0.00016712,2]
[361707755,1747710642048,-430.0,0.00016712,2]
[361707756,1747710642058,-579.24,0.00016712,2]
[361707757,1747710642069,-430.0,0.00016712,2]
[361707758,1747710642080,-430.0,0.00016712,2]
[361707759,1747710642091,-302.85852421,0.00016712,2]
[361707760,1747710642101,-430.0,0.00016712,2]
[361707761,1747710642111,-430.0,0.00016712,2]
[361707762,1747710642120,-430.0,0.00016712,2]
[361707763,1747710642130,-420.0,0.00016712,2]
[361707764,1747710642140,-829.64,0.00016712,2]
[361707765,1747710642149,-430.0,0.00016712,2]
[361707766,1747710642163,-234.68903668,0.00016712,2]
[361707767,1747710642173,-430.0,0.00016712,2]
[361707768,1747710642183,-430.0,0.00016712,2]
[361707769,1747710642194,-1973.39,0.00016712,2]
[361707770,1747710642204,-430.0,0.00016712,2]
[361707771,1747710642214,-1008.59,0.00016712,2]
[361707772,1747710642225,-670.57,0.00016712,2]
[361707773,1747710642235,-430.0,0.00016712,2]
[361707774,1747710642245,-430.0,0.00016712,2]
[361707775,1747710642255,-430.0,0.00016712,2]
[361707776,1747710642264,-430.0,0.00016712,2]
[361707777,1747710642274,-430.0,0.00016712,2]
[361707778,1747710642284,-430.0,0.00016712,2]
[361707780,1747710642294,-221.91076367,0.00016712,2]
[361707781,1747710642303,-562.23,0.00016712,2]
[361707782,1747710642313,-430.0,0.00016712,2]
[361707783,1747710642325,-505.16,0.00016712,2]
[361707784,1747710642335,-430.0,0.00016712,2]
[361707785,1747710642346,-430.0,0.00016712,2]
[361707786,1747710642356,-430.0,0.00016712,2]
[361707787,1747710642366,-430.0,0.00016712,2]
[361707788,1747710642376,-438.88,0.00016712,2]
[361707789,1747710642386,-430.0,0.00016712,2]
[361707790,1747710642395,-1356.98,0.00016712,2]
[361707791,1747710642407,-196.29704414,0.00016712,2]
[361707793,1747710642417,-430.0,0.00016712,2]
[361707795,1747710642426,-979.49,0.00016712,2]
[361707796,1747710642436,-430.0,0.00016712,2]
[361707797,1747710642445,-892.77,0.00016712,2]
[361707798,1747710642455,-716.28,0.00016712,2]
[361707799,1747710642464,-430.0,0.00016712,2]
[361707800,1747710642474,-430.0,0.00016712,2]
[361707801,1747710642484,-1055.81,0.00016712,2]
[361707802,1747710642493,-430.0,0.00016712,2]
[361707803,1747710642503,-430.0,0.00016712,2]
[361707804,1747710642513,-430.0,0.00016712,2]
[361707805,1747710642522,-833.16,0.00016712,2]
[361707806,1747710642533,-667.79,0.00016712,2]
[361707807,1747710642542,-404.635832,0.00016712,2]
[361707808,1747710642551,-430.0,0.00016712,2]
[361707809,1747710642561,-966.84,0.00016712,2]
[361707810,1747710642571,-289.59525751,0.00016712,2]
[361707811,1747710642580,-1196.39,0.00016712,2]
[361707812,1747710642590,-2088.69,0.00016712,2]
[361707813,1747710642600,-430.0,0.00016712,2]
[361707814,1747710642609,-1481.75,0.00016712,2]
[361707815,1747710642619,-751.26,0.00016712,2]
[361707817,1747710642628,-377.39182041,0.00016712,2]
[361707818,1747710642637,-238.86980818,0.00016712,2]
[361707819,1747710642647,-430.0,0.00016712,2]
[361707820,1747710642660,-430.0,0.00016712,2]
[361707821,1747710642670,-470.0,0.00016712,2]
[361707822,1747710642680,-430.0,0.00016712,2]
[361707823,1747710642691,-430.0,0.00016712,2]
[361707824,1747710642702,-384.20434416,0.00016712,2]
[361707825,1747710642712,-1114.98,0.00016712,2]
[361707826,1747710642722,-362.15540799,0.00016712,2]
[361707827,1747710642732,-398.74362186,0.00016712,2]
[361707828,1747710642742,-361.75417049,0.00016712,2]
[361707829,1747710642753,-430.0,0.00016712,2]
[361707830,1747710642762,-470.0,0.00016712,2]
[361707831,1747710642772,-470.0,0.00016712,2]
[361707832,1747710642782,-756.32,0.00016712,2]
[361707833,1747710642791,-430.0,0.00016712,2]
[361707834,1747710642801,-430.0,0.00016712,2]
[361707835,1747710642810,-378.59950477,0.00016712,2]
[361707836,1747710642820,-151.0,0.00016712,2]
[361707837,1747710642830,-430.0,0.00016712,2]
[361707838,1747710642841,-151.0,0.00016712,2]
[361707839,1747710642860,-151.0,0.00016712,2]
[361707840,1747710642875,-696.23,0.00016712,2]
[361707841,1747710642887,-430.0,0.00016712,2]
[361707842,1747710642899,-430.0,0.00016712,2]
[361707843,1747710642919,-430.0,0.00016712,2]
[361707844,1747710642931,-430.0,0.00016712,2]
[361707845,1747710642942,-152.43996,0.00016712,2]
[361707846,1747710642956,-378.36710845,0.00016712,2]
[361707847,1747710642968,-430.0,0.00016712,2]
[361707848,1747710642979,-430.0,0.00016712,2]
[361707849,1747710642991,-509.29,0.00016712,2]
[361707850,1747710643001,-430.0,0.00016712,2]
[361707851,1747710643011,-781.71,0.00016712,2]
[361707852,1747710643021,-430.0,0.00016712,2]
[361707853,1747710643033,-370.0,0.00016712,2]
[361707854,1747710643176,-438.49,0.00016712,2]
[361707855,1747710643187,-356.28136341,0.00016712,2]
[361707856,1747710643196,-736.59,0.00016712,2]
[361707857,1747710643206,-430.0,0.00016712,2]
[361707858,1747710643216,-430.0,0.00016712,2]
[361707859,1747710643226,-430.0,0.00016712,2]
[361707860,1747710643236,-430.0,0.00016712,2]
[361707861,1747710643246,-1190.16,0.00016712,2]
[361707862,1747710643256,-300.0,0.00016712,2]
[361707864,1747710643266,-223.49018546,0.00016712,2]
[361707865,1747710643276,-430.0,0.00016712,2]
[361707867,1747710643286,-430.0,0.00016712,2]
[361707869,1747710643295,-430.0,0.00016712,2]
[361707871,1747710643306,-409.13325794,0.00016712,2]
[361707873,1747710643315,-662.62,0.00016712,2]
[361707875,1747710643326,-430.0,0.00016712,2]
[361707876,1747710643335,-326.48807226,0.00016712,2]
[361707877,1747710643344,-430.0,0.00016712,2]
[361707878,1747710643353,-430.0,0.00016712,2]
[361707879,1747710643363,-430.0,0.00016712,2]
[361707880,1747710643372,-576.52,0.00016712,2]
[361707881,1747710643381,-430.0,0.00016712,2]
[361707882,1747710643391,-370.0,0.00016712,2]
[361707883,1747710643400,-596.32,0.00016712,2]
[361707884,1747710643416,-430.0,0.00016712,2]
[361707885,1747710643427,-1579.47,0.00016712,2]
[361707886,1747710643436,-430.0,0.00016712,2]
[361707887,1747710643446,-430.0,0.00016712,2]
[361707888,1747710643455,-151.0,0.00016712,2]
[361707889,1747710643465,-151.0,0.00016712,2]
[361707890,1747710643475,-430.0,0.00016712,2]
[361707891,1747710643485,-151.0,0.00016712,2]
[361707892,1747710643494,-151.0,0.00016712,2]
[361707893,1747710643504,-151.0,0.00016712,2]
[361707894,1747710643514,-151.0,0.00016712,2]
[361707895,1747710643524,-151.0,0.00016712,2]
[361707896,1747710643534,-151.0,0.00016712,2]
[361707897,1747710643544,-243.968608,0.00016712,2]
[361707898,1747710643553,-462.0,0.00016712,2]
[361707899,1747710643563,-875.63,0.00016712,2]
[361707900,1747710643572,-382.03764993,0.00016712,2]
[361707901,1747710643582,-430.0,0.00016712,2]
[361707902,1747710643591,-664.06,0.00016712,2]
[361707903,1747710643601,-498.61877372,0.00016712,2]
[361707904,1747710643610,-3244.41,0.00016712,2]
[361707905,1747710643620,-380.8158018,0.00016712,2]
[361707906,1747710643630,-430.0,0.00016712,2]
[361707907,1747710643639,-3388.22,0.00016712,2]
[361707908,1747710643653,-3235.72,0.00016712,2]
[361707909,1747710643669,-714.7,0.00016712,2]
[361707910,1747710643679,-611.96,0.00016712,2]
[361707911,1747710643691,-151.0,0.00016712,2]
[361707912,1747710643702,-151.0,0.00016712,2]
[361707913,1747710643713,-151.0,0.00016712,2]
[361707914,1747710643724,-151.0,0.00016712,2]
[361707915,1747710643734,-151.0,0.00016712,2]
[361707916,1747710643744,-151.0,0.00016712,2]
[361707917,1747710643755,-151.0,0.00016712,2]
[361707918,1747710643764,-151.0,0.00016712,2]
[361707919,1747710643775,-151.0,0.00016712,2]
[361707920,1747710643784,-151.0,0.00016712,2]
[361707921,1747710643794,-151.0,0.00016712,2]
[361707922,1747710643803,-151.0,0.00016712,2]
[361707923,1747710643814,-151.0,0.00016712,2]
[361707924,1747710643823,-151.0,0.00016712,2]
[361707925,1747710643833,-6780.62,0.00016712,2]
[361707926,1747710643843,-151.0,0.00016712,2]
[361707927,1747710643853,-151.0,0.00016712,2]
[361707928,1747710643862,-430.0,0.00016712,2]
[361707929,1747710643872,-384.2046547,0.00016712,2]
[361707930,1747710643882,-430.0,0.00016712,2]
[361707931,1747710643892,-561.18857243,0.00016712,2]
[361707932,1747710643902,-430.0,0.00016712,2]
[361707933,1747710643918,-430.0,0.00016712,2]
[361707934,1747710643928,-430.0,0.00016712,2]
[361707935,1747710643938,-430.0,0.00016712,2]
[361707936,1747710643947,-376.30547701,0.00016712,2]
[361707937,1747710643957,-703.78,0.00016712,2]
[361707938,1747710643967,-430.0,0.00016712,2]
[361707939,1747710643977,-1670.44,0.00016712,2]
[361707940,1747710643987,-430.0,0.00016712,2]
[361707941,1747710643996,-430.0,0.00016712,2]
[361707942,1747710644006,-1067.29,0.00016712,2]
[361707943,1747710644015,-430.0,0.00016712,2]
[361707944,1747710644025,-1505.25,0.00016712,2]
[361707945,1747710644035,-493.92792826,0.00016712,2]
[361707946,1747710644045,-430.0,0.00016712,2]
[361707947,1747710644056,-430.0,0.00016712,2]
[361707948,1747710644066,-529.99,0.00016712,2]
[361707949,1747710644076,-606.81,0.00016712,2]
[361707950,1747710644085,-1555.29,0.00016712,2]
[361707951,1747710644096,-430.0,0.00016712,2]
[361707952,1747710644105,-2162.53,0.00016712,2]
[361707953,1747710644115,-1520.2,0.00016712,2]
[361707954,1747710644124,-430.0,0.00016712,2]
[361707955,1747710644134,-430.0,0.00016712,2]
[361707956,1747710644143,-430.0,0.00016712,2]
[361707957,1747710644153,-430.0,0.00016712,2]
[361707958,1747710644168,-430.0,0.00016712,2]
[361707959,1747710644178,-611.61,0.00016712,2]
[361707960,1747710644196,-430.0,0.00016712,2]
[361707961,1747710644206,-2194.91,0.00016712,2]
[361707962,1747710644215,-430.0,0.00016712,2]
[361707963,1747710644225,-430.0,0.00016712,2]
[361707964,1747710644234,-432.85789592,0.00016712,2]
[361707965,1747710644245,-430.0,0.00016712,2]
[361707966,1747710644256,-1564.51,0.00016712,2]
[361707967,1747710644267,-579.48,0.00016712,2]
[361707968,1747710644277,-430.0,0.00016712,2]
[361707969,1747710644289,-430.0,0.00016712,2]
[361707970,1747710644298,-430.0,0.00016712,2]
[361707971,1747710644308,-430.0,0.00016712,2]
[361707972,1747710644318,-2426.99,0.00016712,2]
[361707973,1747710644328,-2413.05,0.00016712,2]
[361707974,1747710644337,-690.7,0.00016712,2]
[361707975,1747710644347,-430.0,0.00016712,2]
[361707976,1747710644357,-430.0,0.00016712,2]
[361707977,1747710644366,-1792.22,0.00016712,2]
[361707978,1747710644376,-430.0,0.00016712,2]
[361707979,1747710644385,-380.31616048,0.00016712,2]
[361707980,1747710644394,-1034.31,0.00016712,2]
[361707981,1747710644404,-430.0,0.00016712,2]
[361707982,1747710644417,-635.43,0.00016712,2]
[361707983,1747710644427,-430.0,0.00016712,2]
[361707984,1747710644436,-430.0,0.00016712,2]
[361707985,1747710644446,-265.01132169,0.00016712,2]
[361707986,1747710644456,-643.96,0.00016712,2]
[361707987,1747710644466,-376.87835612,0.00016712,2]
[361707988,1747710644476,-509.75,0.00016712,2]
[361707989,1747710644485,-1518.36,0.00016712,2]
[361707990,1747710644495,-311.13,0.00016712,2]
[361707991,1747710644505,-485.13817833,0.00016712,2]
[361707992,1747710644515,-430.0,0.00016712,2]
[361707993,1747710644524,-1177.49,0.00016712,2]
[361707994,1747710644534,-388.3982756,0.00016712,2]
[361707995,1747710644546,-430.0,0.00016712,2]
[361707996,1747710644555,-430.0,0.00016712,2]
[361707997,1747710644565,-4645.69,0.00016712,2]
[361707998,1747710644574,-430.0,0.00016712,2]
[361707999,1747710644583,-430.0,0.00016712,2]
[361708000,1747710644596,-921.72,0.00016712,2]
[361708001,1747710644606,-430.0,0.00016712,2]
[361708002,1747710644616,-1477.02,0.00016712,2]
[361708003,1747710644625,-513.2,0.00016712,2]
[361708004,1747710644635,-151.0,0.00016712,2]
[361708005,1747710644646,-151.0,0.00016712,2]
[361708006,1747710644664,-151.0,0.00016712,2]
[361708007,1747710644674,-1978.28,0.00016712,2]
[361708008,1747710644685,-4163.77,0.00016712,2]
[361708009,1747710644695,-151.0,0.00016712,2]
[361708010,1747710644707,-805.64,0.00016712,2]
[361708011,1747710644716,-926.85,0.00016712,2]
[361708012,1747710644727,-430.0,0.00016712,2]
[361708013,1747710644742,-430.0,0.00016712,2]
[361708014,1747710644752,-451.50454324,0.00016712,2]
[361708015,1747710644763,-151.0,0.00016712,2]
[361708016,1747710644775,-151.0,0.00016712,2]
[361708017,1747710644786,-151.0,0.00016712,2]
[361708018,1747710644797,-1103.09,0.00016712,2]
[361708019,1747710644808,-151.0,0.00016712,2]
[361708020,1747710644819,-430.0,0.00016712,2]
[361708021,1747710644830,-151.0,0.00016712,2]
[361708022,1747710644839,-151.0,0.00016712,2]
[361708023,1747710644849,-430.0,0.00016712,2]
[361708024,1747710644859,-2062.65,0.00016712,2]
[361708025,1747710644869,-151.0,0.00016712,2]
[361708026,1747710644879,-151.0,0.00016712,2]
[361708027,1747710644889,-151.0,0.00016712,2]
[361708028,1747710644899,-278.100835,0.00016712,2]
[361708029,1747710644912,-724.86,0.00016712,2]
[361708030,1747710644921,-430.0,0.00016712,2]
[361708031,1747710644930,-2843.34,0.00016712,2]
[361708032,1747710644940,-582.55,0.00016712,2]
[361708033,1747710644949,-462.5465889,0.00016712,2]
[361708034,1747710644959,-430.0,0.00016712,2]
[361708035,1747710644969,-8083.77,0.00016712,2]
[361708036,1747710644979,-371.44406114,0.00016712,2]
[361708037,1747710644988,-11196.81,0.00016712,2]
[361708038,1747710644998,-3516.03,0.00016712,2]
[361708039,1747710645008,-1322.74,0.00016712,2]
[361708040,1747710645017,-639.7,0.00016712,2]
[361708041,1747710645027,-430.0,0.00016712,2]
[361708042,1747710645038,-430.0,0.00016712,2]
[361708043,1747710645048,-1348.89,0.00016712,2]
[361708044,1747710645057,-430.0,0.00016712,2]
[361708045,1747710645069,-2142.66,0.00016712,2]
[361708046,1747710645079,-923.11,0.00016712,2]
[361708047,1747710645089,-10711.75,0.00016712,2]
[361708048,1747710645098,-2838.42,0.00016712,2]
[361708049,1747710645108,-430.0,0.00016712,2]
[361708050,1747710645118,-430.0,0.00016712,2]
[361708051,1747710645128,-502.37813231,0.00016712,2]
[361708052,1747710645140,-430.0,0.00016712,2]
[361708053,1747710645150,-430.0,0.00016712,2]
[361708054,1747710645163,-430.0,0.00016712,2]
[361708055,1747710645172,-530.71,0.00016712,2]
[361708056,1747710645182,-1771.52,0.00016712,2]
[361708057,1747710645192,-430.0,0.00016712,2]
[361708058,1747710645201,-631.97,0.00016712,2]
[361708062,1747710645211,-430.0,0.00016712,2]
[361708064,1747710645340,-1138.14,0.00016712,2]
[361708066,1747710645350,-5642.06,0.00016712,2]
[361708067,1747710645360,-1299.58,0.00016712,2]
[361708068,1747710645370,-430.0,0.00016712,2]
[361708069,1747710645379,-1501.53,0.00016712,2]
[361708070,1747710645390,-430.0,0.00016712,2]
[361708071,1747710645400,-188.0,0.00016712,2]
[361708072,1747710645412,-430.0,0.00016712,2]
[361708073,1747710645422,-690.17,0.00016712,2]
[361708074,1747710645431,-396.88954249,0.00016712,2]
[361708075,1747710645441,-430.0,0.00016712,2]
[361708076,1747710645451,-538.68339153,0.00016712,2]
[361708077,1747710645461,-811.44,0.00016712,2]
[361708078,1747710645471,-1920.92,0.00016712,2]
[361708079,1747710645481,-408.25798044,0.00016712,2]
[361708080,1747710645499,-2319.86,0.00016712,2]
[361708081,1747710645514,-1016.03,0.00016712,2]
[361708082,1747710645524,-2181.65,0.00016712,2]
[361708083,1747710645535,-2263.94,0.00016712,2]
[361708084,1747710645545,-2130.7,0.00016712,2]
[361708085,1747710645556,-374.00568046,0.00016712,2]
[361708086,1747710645566,-515.85,0.00016712,2]
[361708087,1747710645577,-490.68,0.00016712,2]
[361708088,1747710645587,-500.0,0.00016773,2]
[361708089,1747710645598,-500.0,0.00016773,2]
[361708090,1747710645608,-500.0,0.00016773,2]
[361708091,1747710645618,-500.0,0.00016773,2]
[361708092,1747710645629,-500.0,0.00016773,2]
[361708093,1747710645639,-500.0,0.00016773,2]
[361708094,1747710645653,-500.0,0.00016773,2]
[361708095,1747710645664,-500.0,0.00016773,2]
[361708096,1747710645675,-500.0,0.00016773,2]
[361708097,1747710645686,-500.0,0.00016773,2]
[361708098,1747710645697,-151.0,0.000168,2]
[361708099,1747710645708,-151.0,0.000168,2]
[361708100,1747710645718,-151.0,0.000168,2]
[361708101,1747710645730,-151.0,0.000168,2]
[361708103,1747710645741,-151.0,0.000168,2]
[361708104,1747710645751,-2531.16896809,0.00016816,2]
[361708106,1747710646912,-430.0,0.00016438,2]
[361708107,1747710646923,-430.0,0.00016712,2]
[361708108,1747710646933,-121.88026558,0.00016816,2]
[361708109,1747710646946,-26867.44120046,0.00016816,2]
[361708110,1747710647151,-345.01603773,0.00016816,2]
[361708111,1747710647166,-685.88,0.00016816,2]
[361708112,1747710647237,-42923.63639149,0.00016816,2]
[361708113,1747710647247,-151.7159387,0.0001688,2]
[361708114,1747710647257,-151.0,0.000169,2]
[361708115,1747710647266,-151.0,0.000169,2]
[361708116,1747710647276,-151.0,0.000169,2]
[361708117,1747710647287,-151.0,0.000169,2]
[361708118,1747710647297,-151.0,0.000169,2]
[361708119,1747710647307,-3025.45723286,0.000169,2]
[361708120,1747710647316,-4151.1931248,0.00016914,2]
[361708121,1747710647326,-14471.44161749,0.00016916,2]
[361708122,1747710647786,-164.75624935,0.00016438,2]
[361708123,1747710647796,-7986.20824065,0.00016916,2]
[361708162,1747711832080,-324.329641,0.00013699,2]
[361708164,1747711832090,-387.731818,0.00015257,2]
[361708166,1747711832100,-188.7633444,0.0001531,2]
[361708168,1747711832110,-173.91686141,0.00015677,2]
[361708170,1747711832125,-126.08313859,0.00015677,2]
[361708172,1747711832135,-300.0,0.00015677,2]
[361708174,1747711832145,-5573.91686141,0.00015678,2]
[361708177,1747711832158,-1146.49162107,0.00015678,2]
[361708181,1747711832188,-18179.59151752,0.00015678,2]
[361708183,1747711832199,-1150.12605187,0.00016233,2]
[361708185,1747711832211,-162.36820343,0.00016338,2]
[361708187,1747711832221,-846.35,0.00016428,3]
[361708190,1747711832231,-846.35,0.00016428,3]
[361708193,1747711832240,-151.0,0.00016428,2]
[361708196,1747711832249,-207.4,0.00016428,2]
[361708199,1747711832259,-500.0,0.00016437,2]
[361708202,1747711832269,-500.0,0.00016437,2]
[361708205,1747711832279,-500.0,0.00016437,2]
[361708208,1747711832289,-500.0,0.00016437,2]
[361708211,1747711832299,-500.0,0.00016437,2]
[361708214,1747711832308,-500.0,0.00016437,2]
[361708217,1747711832317,-173.66724735,0.00016437,2]
[361708220,1747711832328,-382.1189479,0.00016437,2]
[361708222,1747711832337,-500.0,0.00016437,2]
[361708224,1747711832347,-500.0,0.00016437,2]
[361708226,1747711832356,-312.50141062,0.00016437,2]
[361708228,1747711832366,-500.0,0.00016437,2]
[361708230,1747711832376,-495.30060969,0.00016437,2]
[361708232,1747711832385,-340.31316413,0.00016437,2]
[361708234,1747711832395,-500.0,0.00016437,2]
[361708236,1747711832405,-500.0,0.00016437,2]
[361708238,1747711832414,-500.0,0.00016437,2]
[361708240,1747711832424,-500.0,0.00016437,2]
[361708242,1747711832434,-500.0,0.00016437,2]
[361708243,1747711832443,-500.0,0.00016437,2]
[361708245,1747711832453,-151.0,0.00016438,2]
[361708247,1747711832468,-151.0,0.00016438,2]
[361708249,1747711832479,-151.0,0.00016438,2]
[361708251,1747711832488,-151.0,0.00016438,2]
[361708253,1747711832498,-151.0,0.00016438,2]
[361708255,1747711832508,-151.0,0.00016438,2]
[361708257,1747711832518,-151.0,0.00016438,2]
[361708259,1747711832528,-151.0,0.00016438,2]
[361708261,1747711832538,-151.0,0.00016438,2]
[361708263,1747711832548,-151.0,0.00016438,2]
[361708265,1747711832557,-151.0,0.00016438,2]
[361708267,1747711832567,-151.0,0.00016438,2]
[361708269,1747711832577,-151.0,0.00016438,2]
[361708271,1747711832587,-151.0,0.00016438,2]
[361708273,1747711832597,-151.0,0.00016438,2]
[361708275,1747711832607,-151.0,0.00016438,2]
[361708277,1747711832616,-151.0,0.00016438,2]
[361708279,1747711832626,-430.0,0.00016438,2]
[361708281,1747711832635,-430.0,0.00016438,2]
[361708283,1747711832645,-430.0,0.00016438,2]
[361708285,1747711832655,-430.0,0.00016438,2]
[361708287,1747711832665,-430.0,0.00016438,2]
[361708289,1747711832675,-427.96076958,0.00016438,2]
[361708291,1747711832684,-450.0,0.00016438,2]
[361708293,1747711832693,-169.72234907,0.00016438,2]
[361708295,1747711832703,-836.21,0.00016438,2]
[361708297,1747711832719,-430.0,0.00016438,2]
[361708298,1747711832728,-519.31,0.00016438,2]
[361708299,1747711832738,-430.0,0.00016438,2]
[361708300,1747711832748,-430.0,0.00016438,2]
[361708301,1747711832758,-430.0,0.00016438,2]
[361708302,1747711832768,-435.1301932,0.00016438,2]
[361708303,1747711832777,-535.99,0.00016438,2]
[361708304,1747711832787,-430.0,0.00016438,2]
[361708305,1747711832798,-450.0,0.00016438,2]
[361708306,1747711832807,-430.0,0.00016438,2]
[361708307,1747711832817,-430.0,0.00016438,2]
[361708308,1747711832827,-430.0,0.00016438,2]
[361708309,1747711832837,-430.0,0.00016438,2]
[361708310,1747711832848,-430.0,0.00016438,2]
[361708311,1747711832858,-430.0,0.00016438,2]
[361708312,1747711832867,-430.0,0.00016438,2]
[361708313,1747711832878,-430.0,0.00016438,2]
[361708314,1747711832888,-199.02285977,0.00016438,2]
[361708315,1747711832898,-546.95,0.00016438,2]
[361708316,1747711832909,-440.89,0.00016438,2]
[361708317,1747711832919,-430.0,0.00016438,2]
[361708318,1747711832929,-430.0,0.00016438,2]
[361708319,1747711832939,-234.08695977,0.00016438,2]
[361708320,1747711832949,-248.7747718,0.00016438,2]
[361708321,1747711832960,-1185.02,0.00016438,2]
[361708322,1747711832970,-430.0,0.00016438,2]
[361708323,1747711832979,-772.82,0.00016438,2]
[361708324,1747711832989,-430.0,0.00016438,2]
[361708325,1747711832998,-500.0,0.00016438,2]
[361708326,1747711833009,-500.0,0.00016438,2]